bitfinex/quotes_ETHUSD_20210401
["timestamp","ask_amount","ask_price","bid_price","bid_amount"]
[1617319245399,6.8361,1971.8,1971.4,10.4798482]
[1617319246237,7.2461,1971.8,1971.4,10.4798482]
[1617319246438,0.4,1971.7,1971.4,10.4798482]
[1617319246838,1.822,1971.9,1971.6,0.1968084]
[1617319247052,32.60788489,1972.1,1971.6,0.1968084]
[1617319247250,32.60788489,1972.1,1971.7,0.38]
[1617319247449,32.60788489,1972.4,1971.7,0.38]
[1617319247641,32.60788489,1972.4,1971.8,0.39]
[1617319247843,32.60788489,1972.4,1972.0,7.60546]
[1617319248045,32.60788489,1972.4,1972.1,4.96586984]
[1617319248246,22.9841,1972.6,1971.9,4.96586984]
[1617319248443,22.9841,1972.6,1971.9,5.05719478]
[1617319248640,22.9841,1972.6,1971.8,21.29099]
[1617319248843,0.39,1972.5,1971.9,0.09132494]
[1617319249246,0.39,1972.5,1972.1,7.60511]
[1617319249445,22.9841,1972.6,1972.1,7.60511]
[1617319249642,23.3741,1972.6,1972.1,7.60511]
[1617319251044,0.39,1972.5,1971.9,0.09132494]
[1617319251244,0.38,1972.3,1971.9,0.09132494]
[1617319251471,0.38,1972.3,1971.8,10.62231494]
[1617319251878,0.38,1972.3,1972.2,0.13306679]
[1617319252668,8.58,1972.3,1972.2,0.13306679]
[1617319254500,0.38,1972.3,1972.2,0.13306679]
[1617319254902,23.3841,1972.6,1972.2,0.13306679]
[1617319255100,4.88,1972.3,1972.2,0.13306679]
[1617319255300,32.60788489,1972.4,1972.2,0.13306679]
[1617319256920,7.0,1972.3,1972.2,0.13306679]
[1617319257319,0.4,1972.3,1972.2,0.13306679]
[1617319257520,32.60788489,1972.4,1972.2,0.13306679]
[1617319259343,23.3641,1972.6,1972.2,0.13306679]
[1617319260143,0.41,1972.5,1972.2,0.13306679]
[1617319261744,22.9841,1972.6,1972.2,0.54306679]
[1617319261995,23.3841,1972.6,1972.2,0.13306679]
[1617319262197,0.38,1972.4,1972.2,0.13306679]
[1617319262397,42.17378489,1972.4,1972.2,0.13306679]
[1617319262598,24.85,1972.3,1972.2,0.13306679]
[1617319262999,67.99378489,1972.3,1972.2,6.79e-06]
[1617319263398,67.99378489,1972.3,1971.2,0.4]
[1617319263399,0.38,1971.8,1971.2,0.4]
[1617319263599,40.61148489,1971.8,1971.2,0.4]
[1617319265397,40.23148489,1971.8,1971.2,12.97490984]
[1617319265598,40.23148489,1971.8,1971.2,24.25490984]
[1617319265797,40.23148489,1971.8,1971.2,16.64586984]
[1617319266398,40.23148489,1971.8,1971.4,0.4]
[1617319267220,40.23148489,1971.8,1971.5,7.60739]
[1617319267421,0.8045,1971.9,1971.5,7.60739]
[1617319267621,0.41,1972.0,1971.7,0.16187247]
[1617319267824,33.59428489,1972.3,1971.7,0.16187247]
[1617319268022,0.4,1972.1,1971.5,0.38]
[1617319268222,0.4,1972.1,1971.5,3.99132494]
[1617319268424,0.4,1971.8,1971.5,3.52]
[1617319268626,33.80788489,1972.3,1971.4,10.14319]
[1617319268827,0.4,1971.9,1971.4,10.14319]
[1617319269024,0.4,1971.9,1971.3,0.49132494]
[1617319269228,0.4,1971.9,1971.3,0.4]
[1617319271148,0.4,1971.9,1971.4,0.09132494]
[1617319271350,0.4,1971.9,1971.3,0.4]
[1617319272150,0.4,1971.9,1971.3,8.0092]
[1617319272369,0.4,1971.9,1971.4,0.09132494]
[1617319272570,0.4,1971.9,1971.8,0.1807372]
[1617319272771,32.60788489,1972.0,1971.8,0.1807372]
[1617319272972,18.16,1971.9,1971.8,0.1807372]
[1617319273175,73.41757255,1971.9,1971.8,0.1807372]
[1617319273375,74.61757255,1971.9,1971.8,0.1807372]
[1617319274391,102.12447255,1971.9,1971.8,0.1807372]
[1617319274789,97.24447255,1971.9,1971.8,0.1807372]
[1617319274998,79.49447255,1971.9,1971.8,0.1807372]
[1617319275200,70.68482255,1971.9,1971.8,0.1807372]
[1617319275400,66.70218489,1971.9,1971.8,0.1807372]
[1617319275599,66.29218489,1971.9,1971.8,0.1807372]
[1617319276404,67.89218489,1971.9,1971.8,0.1807372]
[1617319277005,66.69218489,1971.9,1971.8,0.1807372]
[1617319277822,74.30188489,1971.9,1971.8,0.1807372]
[1617319278020,74.31188489,1971.9,1971.8,0.1807372]
[1617319278427,66.70218489,1971.9,1971.8,0.1807372]
[1617319279423,67.90218489,1971.9,1971.8,0.1807372]
[1617319280650,66.29218489,1971.9,1971.8,0.1807372]
[1617319280853,33.6843,1971.9,1971.8,0.1807372]
[1617319281251,66.29218489,1971.9,1971.8,0.1807372]
[1617319283274,66.29218489,1971.9,1971.8,0.0807372]
[1617319285700,67.88218489,1971.9,1971.8,0.0807372]
[1617319286698,75.49191489,1971.9,1971.8,0.0807372]
[1617319288530,75.49191489,1971.9,1971.3,0.12117838]
[1617319288730,0.38,1971.7,1971.3,0.12117838]
[1617319288931,7.6112,1971.5,1971.3,0.12117838]
[1617319289130,32.60788489,1971.4,1971.3,0.12117838]
[1617319292977,32.60788489,1971.5,1971.3,0.51117838]
[1617319293175,0.41,1971.7,1971.3,0.12117838]
[1617319293371,32.60788489,1971.8,1971.3,0.12117838]
[1617319293372,32.99788489,1971.8,1971.3,0.53117838]
[1617319293575,3.6,1971.6,1971.3,0.53117838]
[1617319293774,3.6,1971.6,1971.3,0.41]
[1617319294973,3.6,1971.6,1971.1,11.14587]
[1617319295174,3.6,1971.6,1971.2,7.60996]
[1617319295378,0.4,1971.7,1971.2,7.60996]
[1617319296400,40.21783489,1971.8,1971.3,7.99966]
[1617319296604,32.60788489,1971.8,1971.3,7.99966]
[1617319298009,33.01788489,1971.8,1971.3,7.99966]
[1617319298408,33.01788489,1971.8,1971.3,0.39]
[1617319298828,40.62801489,1971.8,1971.3,0.39]
[1617319299429,33.01788489,1971.8,1971.3,0.39]
[1617319299830,33.01788489,1971.8,1971.1,11.14587]
[1617319300229,33.01788489,1971.8,1971.3,7.60946]
[1617319302654,7.76,1971.7,1971.2,0.39]
[1617319302856,8.15,1971.7,1971.1,8.61063]
[1617319303055,0.39,1971.5,1971.1,8.61063]
[1617319303259,32.60788489,1971.6,1971.1,9.00063]
[1617319303456,33.22708489,1971.6,1971.1,1.39]
[1617319303881,13.03114,1971.5,1971.1,1.0]
[1617319304182,19.04104,1971.5,1971.1,1.0]
[1617319304581,24.00690984,1971.5,1971.1,1.0]
[1617319304779,5.82,1971.4,1971.1,1.0]
[1617319305181,19.92070984,1971.5,1971.1,1.0]
[1617319305182,3.86,1971.3,1971.1,1.0]
[1617319305383,3.86,1971.3,1971.2,0.10813112]
[1617319306381,6.0099,1971.5,1971.2,0.48813112]
[1617319306621,32.60788489,1971.6,1971.2,0.48813112]
[1617319307422,32.60788489,1971.6,1971.2,10.75625991]
[1617319307628,32.60788489,1971.8,1971.5,0.41]
[1617319308025,32.60788489,1971.8,1971.6,0.39]
[1617319308629,24.0961,1972.1,1971.7,10.73778]
[1617319309027,24.0961,1972.1,1971.8,0.38]
[1617319309229,24.0961,1972.1,1971.9,2.66466114]
[1617319309625,24.0961,1972.1,1971.8,15.0161]
[1617319309825,24.0961,1972.1,1971.9,7.98707]
[1617319310424,24.0961,1972.1,1972.0,0.18966135]
[1617319317503,24.0961,1972.1,1972.0,0.59966135]
[1617319318101,24.0961,1972.1,1972.0,0.18966135]
[1617319318706,24.0961,1972.1,1972.0,7.79653135]
[1617319319125,24.0961,1972.1,1972.0,10.47653135]
[1617319320531,24.4861,1972.1,1972.0,10.47653135]
[1617319320732,24.4861,1972.1,1972.0,0.18966135]
[1617319321731,57.09398489,1972.1,1972.0,0.18966135]
[1617319322374,58.29398489,1972.1,1972.0,0.18966135]
[1617319322575,25.6861,1972.1,1972.0,0.18966135]
[1617319322778,58.29398489,1972.1,1972.0,0.18966135]
[1617319323175,85.41988489,1972.1,1972.0,0.18966135]
[1617319323778,93.02908489,1972.1,1972.0,0.18966135]
[1617319328604,92.97908489,1972.1,1972.0,0.18966135]
[1617319330005,99.97908489,1972.1,1972.0,0.18966135]
[1617319330230,99.97908489,1972.1,1971.2,10.1456]
[1617319330430,0.39,1971.6,1971.4,0.10874172]
[1617319330630,32.60788489,1971.5,1971.4,0.10874172]
[1617319334055,33.01788489,1971.5,1971.4,0.10874172]
[1617319336507,24.95,1971.4,1971.1,1.0]
[1617319336714,37.85,1971.2,1971.1,1.0]
[1617319336909,45.0045,1971.2,1971.1,1.0]
[1617319337112,45.0045,1971.2,1970.6,7.35e-06]
[1617319337113,24.95,1971.1,1970.6,7.35e-06]
[1617319337314,0.39,1970.7,1970.6,7.35e-06]
[1617319337508,39.33468489,1970.7,1970.6,7.35e-06]
[1617319338910,38.94468489,1970.7,1970.6,7.35e-06]
[1617319339111,38.94468489,1970.7,1970.6,0.39000735]
[1617319339510,38.94468489,1970.7,1970.6,7.35e-06]
[1617319339713,38.94468489,1970.7,1970.6,10.73000735]
[1617319339918,38.94468489,1970.7,1970.6,13.47000735]
[1617319340115,6.3368,1970.7,1970.6,13.47000735]
[1617319340515,29.7874,1971.3,1970.6,13.47000735]
[1617319340731,29.7874,1971.3,1971.1,0.39]
[1617319340931,29.7874,1971.3,1971.0,7.6104]
[1617319341133,29.7874,1971.3,1970.9,0.41]
[1617319341530,29.7874,1971.3,1971.0,0.41]
[1617319341731,32.60788489,1971.8,1971.2,0.38]
[1617319341934,9.29402999,1972.1,1971.5,0.4]
[1617319341935,1.33386305,1972.1,1971.5,0.4]
[1617319342133,32.86644915,1972.2,1971.6,0.4]
[1617319342330,0.25856426,1972.2,1971.6,0.4]
[1617319343129,0.41,1972.1,1971.5,7.44292494]
[1617319343359,0.41,1972.1,1971.5,7.84292494]
[1617319343760,0.39,1972.0,1971.8,7.60719]
[1617319343962,0.25856426,1972.2,1971.8,7.60719]
[1617319344159,0.4,1972.1,1971.8,7.60719]
[1617319344558,0.25856426,1972.2,1971.8,7.60719]
[1617319344759,0.65856426,1972.2,1971.8,7.60719]
[1617319345760,33.26644915,1972.2,1971.8,7.60719]
[1617319346181,33.26644915,1972.2,1971.6,10.55324]
[1617319346383,0.41,1972.1,1971.6,10.14324]
[1617319346581,0.41,1972.1,1972.0,0.11201707]
[1617319347584,7.31,1972.1,1972.0,0.11201707]
[1617319348387,25.41,1972.1,1972.0,0.11201707]
[1617319348613,64.97661429,1972.1,1972.0,0.11201707]
[1617319348813,9.22,1972.0,1971.1,0.09132494]
[1617319349014,9.22,1972.0,1971.0,10.14582]
[1617319349015,0.4,1971.3,1970.7,0.10301386]
[1617319349246,0.4,1971.3,1970.8,0.09132494]
[1617319349845,1.2,1971.7,1971.0,0.4]
[1617319350046,32.60788489,1971.3,1971.2,10.05]
[1617319350255,28.0407,1971.8,1971.2,0.4]
[1617319350256,32.60788489,1971.5,1971.2,0.4]
[1617319350644,32.60788489,1971.5,1970.7,0.10301638]
[1617319350846,32.60788489,1971.5,1970.7,2.22697223]
[1617319351252,33.01788489,1971.5,1971.2,7.6095]
[1617319351453,33.01788489,1971.5,1971.1,10.14533]
[1617319351653,5.27,1971.4,1970.7,0.10301638]
[1617319351853,0.4,1971.3,1970.7,0.48301638]
[1617319352054,4.88,1971.4,1970.9,0.4]
[1617319352254,32.60788489,1971.5,1970.9,8.01088]
[1617319352456,32.60788489,1971.5,1970.9,11.47088]
[1617319352853,32.74788489,1971.5,1970.9,11.47088]
[1617319353057,33.12788489,1971.5,1970.9,11.47088]
[1617319354058,0.38,1971.4,1970.9,11.07088]
[1617319354259,0.38,1971.4,1970.9,7.61088]
[1617319354463,0.39,1971.2,1970.7,0.49132494]
[1617319354664,0.38,1971.1,1970.6,7.35e-06]
[1617319354863,0.4,1971.0,1970.6,7.35e-06]
[1617319355061,32.60788489,1970.9,1970.6,7.35e-06]
[1617319355261,4.94,1970.8,1970.6,7.35e-06]
[1617319356263,37.6386775,1970.8,1970.6,7.35e-06]
[1617319356489,41.82788489,1970.7,1970.6,7.35e-06]
[1617319356688,51.12068489,1970.7,1970.6,7.35e-06]
[1617319358089,50.73068489,1970.7,1970.6,7.35e-06]
[1617319358489,41.92068489,1970.7,1970.6,7.35e-06]
[1617319358691,8.9028,1970.7,1970.6,7.35e-06]
[1617319358890,41.16068489,1970.7,1970.6,7.35e-06]
[1617319361555,41.54068489,1970.7,1970.6,7.35e-06]
[1617319366765,9.2828,1970.7,1970.6,7.35e-06]
[1617319366982,53.47056005,1970.7,1970.6,7.35e-06]
[1617319367980,54.67056005,1970.7,1970.6,7.35e-06]
[1617319368785,64.82511005,1970.7,1970.6,7.35e-06]
[1617319370409,54.67056005,1970.7,1970.6,7.35e-06]
[1617319370610,53.47056005,1970.7,1970.6,7.35e-06]
[1617319374238,48.54068489,1970.7,1970.6,7.35e-06]
[1617319375065,49.74068489,1970.7,1970.6,7.35e-06]
[1617319375664,50.74916415,1970.7,1970.6,7.35e-06]
[1617319375865,59.89493489,1970.7,1970.6,7.35e-06]
[1617319376065,60.82879794,1970.7,1970.6,7.35e-06]
[1617319377270,34.33264624,1970.7,1970.6,7.35e-06]
[1617319377485,58.57091305,1970.7,1970.6,7.35e-06]
[1617319377686,154.75282885,1970.7,1970.6,7.35e-06]
[1617319377885,59.83286146,1970.7,1970.6,7.35e-06]
[1617319378085,68.30806903,1970.7,1970.6,7.35e-06]
[1617319378284,164.48998483,1970.7,1970.6,7.35e-06]
[1617319378489,132.24056013,1970.7,1970.6,7.35e-06]
[1617319378686,228.42247593,1970.7,1970.6,7.35e-06]
[1617319378891,132.24056013,1970.7,1970.6,7.35e-06]
[1617319379088,146.00264692,1970.7,1970.6,7.35e-06]
[1617319379293,138.29659915,1970.7,1970.6,7.35e-06]
[1617319379693,204.47851495,1970.7,1970.6,7.35e-06]
[1617319379888,108.29659915,1970.7,1970.6,7.35e-06]
[1617319380109,204.47851495,1970.7,1970.6,7.35e-06]
[1617319380308,108.29659915,1970.7,1970.6,7.35e-06]
[1617319380509,204.47851495,1970.7,1970.6,7.35e-06]
[1617319380914,108.29659915,1970.7,1970.6,7.35e-06]
[1617319381111,107.09659915,1970.7,1970.6,7.35e-06]
[1617319381311,98.71659915,1970.7,1970.6,7.35e-06]
[1617319381513,112.87470528,1970.7,1970.6,7.35e-06]
[1617319381712,112.34502647,1970.7,1970.6,7.35e-06]
[1617319382741,119.96035647,1970.7,1970.6,7.35e-06]
[1617319385139,120.36035647,1970.7,1970.6,7.35e-06]
[1617319388991,121.36335541,1970.7,1970.6,7.35e-06]
[1617319389193,120.36035647,1970.7,1970.6,7.35e-06]
[1617319391214,121.29715753,1970.7,1970.6,7.35e-06]
[1617319394269,120.89715753,1970.7,1970.6,7.35e-06]
[1617319396876,33.44653643,1970.7,1970.6,16.77460116]
[1617319397076,1.18865154,1970.7,1970.6,25.46447632]
[1617319397276,55.33128489,1970.9,1970.8,14.98]
[1617319397277,23.0734,1970.9,1970.8,14.98]
[1617319397475,23.0734,1970.9,1970.8,24.10987516]
[1617319397677,23.0734,1970.9,1970.8,27.80987516]
[1617319397876,23.0734,1970.9,1970.8,7.61007]
[1617319398077,23.0734,1970.9,1970.7,0.6829]
[1617319398078,55.33128489,1970.9,1970.7,0.6829]
[1617319398274,32.25788489,1970.8,1970.7,1.0729]
[1617319398493,32.25788489,1970.8,1970.7,0.39]
[1617319403743,23.0734,1970.9,1970.7,0.39]
[1617319403943,32.25788489,1970.8,1970.7,0.39]
[1617319405742,32.25788489,1970.8,1970.7,8.89]
[1617319405944,23.0734,1970.9,1970.8,19.61163]
[1617319406145,23.0734,1970.9,1970.8,27.16960213]
[1617319406371,23.0734,1970.9,1970.8,27.19163]
[1617319407569,23.0734,1970.9,1970.8,15.19163]
[1617319407973,23.0734,1970.9,1970.8,10.99163]
[1617319408177,23.0734,1970.9,1970.8,7.99163]
[1617319408769,23.0734,1970.9,1970.8,7.61163]
[1617319411625,23.0734,1970.9,1970.8,8.00163]
[1617319411825,23.0734,1970.9,1970.8,10.96163]
[1617319414442,23.0734,1970.9,1970.8,10.57163]
[1617319416245,23.0734,1970.9,1970.8,7.61163]
[1617319416449,55.33128489,1970.9,1970.7,10.14771]
[1617319421298,55.33128489,1970.9,1970.7,13.20771]
[1617319422316,23.0734,1970.9,1970.7,14.40771]
[1617319423517,23.0734,1970.9,1970.7,13.20771]
[1617319424117,23.0734,1970.9,1970.7,13.15771]
[1617319426549,23.0734,1970.9,1970.7,12.90771]
[1617319427386,23.0734,1970.9,1970.7,14.10771]
[1617319430293,23.0734,1970.9,1970.7,22.10771]
[1617319430695,23.0734,1970.9,1970.7,14.2892672]
[1617319430897,23.0734,1970.9,1970.7,6.2892672]
[1617319431098,23.0734,1970.9,1970.8,18.14678]
[1617319431297,23.0734,1970.9,1970.8,11.34678]
[1617319431499,23.0734,1970.9,1970.8,24.14678]
[1617319433118,23.0734,1970.9,1970.8,16.14678]
[1617319433319,23.0734,1970.9,1970.8,11.34678]
[1617319434321,23.0734,1970.9,1970.8,11.29678]
[1617319435751,23.0734,1970.9,1970.8,11.45294075]
[1617319437971,23.4834,1970.9,1970.8,10.25294075]
[1617319438572,23.4834,1970.9,1970.8,0.15616075]
[1617319438973,23.4834,1970.9,1970.8,7.76807075]
[1617319439677,23.0734,1970.9,1970.8,7.76807075]
[1617319440700,23.4834,1970.9,1970.8,7.76807075]
[1617319441302,23.0734,1970.9,1970.8,7.76807075]
[1617319442705,23.0734,1970.9,1970.8,22.29794591]
[1617319442904,23.0734,1970.9,1970.8,21.09794591]
[1617319443128,32.63788489,1971.3,1970.8,11.96807075]
[1617319443328,32.63788489,1971.3,1970.8,11.81191]
[1617319443329,0.41,1971.1,1970.8,11.81191]
[1617319444328,0.41,1971.1,1970.8,7.61191]
[1617319444530,32.25788489,1971.3,1970.8,7.61191]
[1617319444733,32.64788489,1971.3,1970.8,7.61191]
[1617319444931,0.39,1971.2,1970.8,7.61191]
[1617319445753,0.39,1971.2,1971.0,0.17119461]
[1617319446554,0.39,1971.2,1971.0,7.78228461]
[1617319446753,0.39,1971.2,1971.0,10.46228461]
[1617319447553,0.39,1971.2,1971.0,7.78228461]
[1617319449178,32.25788489,1971.3,1971.0,7.78228461]
[1617319449377,32.66788489,1971.3,1971.0,7.78228461]
[1617319449577,32.66788489,1971.3,1971.0,10.46228461]
[1617319451204,0.41,1971.3,1971.0,10.46228461]
[1617319451804,7.81,1971.1,1971.0,7.78228461]
[1617319452205,0.41,1971.1,1971.0,7.78228461]
[1617319452407,42.81788489,1971.1,1971.0,0.17119461]
[1617319454233,44.01788489,1971.1,1970.6,7.35e-06]
[1617319454438,0.39,1970.8,1970.6,7.35e-06]
[1617319454632,32.25788489,1970.7,1970.6,7.35e-06]
[1617319456658,32.25788489,1970.7,1970.6,7.61228735]
[1617319457056,59.74828489,1970.9,1970.6,7.61228735]
[1617319457258,27.4904,1970.9,1970.6,8.00228735]
[1617319457456,27.4904,1970.9,1970.6,10.72228735]
[1617319458878,32.25788489,1971.2,1970.6,14.52740735]
[1617319459082,32.25788489,1971.2,1970.9,7.61029]
[1617319459083,0.38,1971.2,1970.9,7.61029]
[1617319459281,22.5057,1971.3,1970.9,7.61029]
[1617319459480,22.9157,1971.3,1970.9,7.61029]
[1617319459680,0.4,1971.1,1970.9,7.61029]
[1617319460684,0.4,1971.0,1970.8,10.14705]
[1617319460881,32.65788489,1971.0,1970.8,10.14705]
[1617319461082,8.91,1970.9,1970.8,10.14705]
[1617319461281,0.41,1970.9,1970.6,7.35e-06]
[1617319462103,32.25788489,1971.0,1970.6,7.61234735]
[1617319464126,32.25788489,1971.0,1970.9,0.10186374]
[1617319464529,32.65788489,1971.0,1970.9,0.10186374]
[1617319468358,32.25788489,1971.0,1970.9,0.10186374]
[1617319468957,32.25788489,1971.0,1970.9,7.71319374]
[1617319470381,32.64788489,1971.0,1970.9,7.71319374]
[1617319470581,32.64788489,1971.0,1970.9,0.10186374]
[1617319470783,42.09578489,1971.0,1970.9,0.10186374]
[1617319471184,50.29578489,1971.0,1970.9,0.10186374]
[1617319471381,14.7,1970.9,1970.6,7.35e-06]
[1617319471582,5.32987516,1970.8,1970.6,7.35e-06]
[1617319471780,32.65788489,1970.8,1970.6,7.35e-06]
[1617319472025,7.38,1970.7,1970.6,7.35e-06]
[1617319472624,61.44008489,1970.8,1970.6,7.35e-06]
[1617319473024,61.58008489,1970.8,1970.6,7.35e-06]
[1617319473426,61.18008489,1970.8,1970.6,7.35e-06]
[1617319473729,61.18008489,1970.8,1970.6,7.61276735]
[1617319474126,61.04008489,1970.8,1970.6,7.61276735]
[1617319474628,61.04008489,1970.8,1970.6,7.35e-06]
[1617319474832,5.32987516,1970.7,1970.6,7.35e-06]
[1617319475030,14.54987516,1970.7,1970.6,7.35e-06]
[1617319475830,46.80776005,1970.7,1970.6,7.35e-06]
[1617319476234,45.20249005,1970.7,1970.6,7.35e-06]
[1617319477032,46.40249005,1970.7,1970.6,7.35e-06]
[1617319477453,45.20249005,1970.7,1970.6,7.35e-06]
[1617319477853,46.40249005,1970.7,1970.6,7.35e-06]
[1617319478857,37.58776005,1970.7,1970.6,7.35e-06]
[1617319479453,38.78776005,1970.7,1970.6,7.35e-06]
[1617319479655,45.20257005,1970.7,1970.6,7.35e-06]
[1617319479878,37.58776005,1970.7,1970.6,7.35e-06]
[1617319480287,38.78776005,1970.7,1970.6,7.35e-06]
[1617319480478,32.65788489,1970.7,1970.6,7.35e-06]
[1617319481077,33.85788489,1970.7,1970.6,7.35e-06]
[1617319481679,32.65788489,1970.7,1970.6,7.35e-06]
[1617319481880,40.27249489,1970.7,1970.6,7.35e-06]
[1617319482080,32.65788489,1970.7,1970.6,7.35e-06]
[1617319483509,40.33118489,1970.7,1970.6,7.35e-06]
[1617319485132,39.93118489,1970.7,1970.6,7.35e-06]
[1617319485432,41.13118489,1970.7,1970.6,7.35e-06]
[1617319485632,41.52118489,1970.7,1970.6,7.35e-06]
[1617319487034,40.32118489,1970.7,1970.6,7.35e-06]
[1617319487432,41.52118489,1970.7,1970.6,7.35e-06]
[1617319487680,49.13605489,1970.7,1970.6,7.35e-06]
[1617319488484,41.13118489,1970.7,1970.6,7.35e-06]
[1617319490486,41.52118489,1970.7,1970.6,7.35e-06]
[1617319490682,40.32118489,1970.7,1970.6,7.35e-06]
[1617319491282,47.93612489,1970.7,1970.6,7.35e-06]
[1617319491482,39.93118489,1970.7,1970.6,7.35e-06]
[1617319494516,32.25788489,1970.7,1970.6,7.35e-06]
[1617319497337,33.45788489,1970.7,1970.6,7.35e-06]
[1617319497539,32.25788489,1970.7,1970.6,7.35e-06]
[1617319498959,40.23908489,1970.7,1970.6,7.35e-06]
[1617319500788,47.85359489,1970.7,1970.6,7.35e-06]
[1617319501385,47.47359489,1970.7,1970.6,7.35e-06]
[1617319503404,39.85908489,1970.7,1970.6,7.35e-06]
[1617319505012,48.45908489,1970.7,1970.6,7.35e-06]
[1617319505213,120.00596599,1970.7,1970.6,7.35e-06]
[1617319505409,87.7480811,1970.7,1970.6,7.35e-06]
[1617319505605,183.9299969,1970.7,1970.6,7.35e-06]
[1617319505805,87.7480811,1970.7,1970.6,7.35e-06]
[1617319506232,183.9299969,1970.7,1970.6,7.35e-06]
[1617319506632,87.7480811,1970.7,1970.6,7.35e-06]
[1617319506837,183.9299969,1970.7,1970.6,7.35e-06]
[1617319507039,118.40596599,1970.7,1970.6,7.35e-06]
[1617319507240,111.40596599,1970.7,1970.6,7.35e-06]
[1617319507443,47.47347489,1970.7,1970.6,7.35e-06]
[1617319508438,39.85908489,1970.7,1970.6,7.35e-06]
[1617319508862,32.25788489,1970.7,1970.6,7.35e-06]
[1617319509663,36.39627,1970.8,1970.6,7.35e-06]
[1617319510266,36.39627,1970.8,1970.7,0.1873874]
[1617319510462,68.65415489,1970.8,1970.7,0.1873874]
[1617319510862,31.76267,1970.8,1970.7,0.1873874]
[1617319511065,24.1486,1970.8,1970.7,0.5673874]
[1617319511482,24.1486,1970.8,1970.7,0.1873874]
[1617319513687,56.81648489,1970.8,1970.7,0.1873874]
[1617319514314,64.43044489,1970.8,1970.7,0.1873874]
[1617319514713,71.43044489,1970.8,1970.7,0.1873874]
[1617319516116,72.63044489,1970.8,1970.6,7.35e-06]
[1617319516316,14.56150766,1970.7,1970.6,7.35e-06]
[1617319516555,35.44529766,1970.7,1970.6,7.35e-06]
[1617319516755,68.90318255,1970.7,1970.6,7.35e-06]
[1617319517154,69.83998361,1970.7,1970.6,7.35e-06]
[1617319520958,68.63998361,1970.7,1970.6,7.35e-06]
[1617319521781,69.83998361,1970.7,1970.6,7.35e-06]
[1617319524186,69.44998361,1970.7,1970.6,7.35e-06]
[1617319525613,68.24998361,1970.7,1970.6,7.35e-06]
[1617319525813,68.62998361,1970.7,1970.6,7.35e-06]
[1617319527034,63.29847595,1970.7,1970.6,7.35e-06]
[1617319528233,63.68847595,1970.7,1970.6,7.35e-06]
[1617319528636,63.29847595,1970.7,1970.6,7.35e-06]
[1617319529271,62.36167489,1970.7,1970.6,7.35e-06]
[1617319530072,63.94167489,1970.7,1970.6,7.35e-06]
[1617319530273,64.87847595,1970.7,1970.6,7.35e-06]
[1617319531673,64.77847595,1970.7,1970.6,7.35e-06]
[1617319533113,136.70250686,1970.7,1970.6,7.35e-06]
[1617319533314,128.59717684,1970.7,1970.6,7.35e-06]
[1617319533511,62.55526104,1970.7,1970.6,7.35e-06]
[1617319533712,121.12148684,1970.7,1970.1,1.0]
[1617319533915,0.41,1970.3,1970.1,1.0]
[1617319534109,39.25788489,1970.2,1970.1,1.0]
[1617319534311,46.53658489,1970.2,1970.1,1.0]
[1617319535711,54.15451489,1970.2,1970.1,1.0]
[1617319537113,54.53451489,1970.2,1970.1,1.0]
[1617319538134,55.47131595,1970.2,1970.1,1.0]
[1617319539139,56.67131595,1970.2,1970.1,1.0]
[1617319539336,55.47131595,1970.2,1970.1,1.0]
[1617319540872,55.47131595,1970.2,1969.6,1.39]
[1617319540873,24.25,1969.7,1969.6,1.0]
[1617319541076,63.50788489,1969.7,1969.6,1.0]
[1617319541274,71.64338489,1969.7,1969.6,1.0]
[1617319542887,79.26338489,1969.7,1969.6,1.0]
[1617319543089,54.87338489,1969.7,1969.6,1.0]
[1617319543290,39.25788489,1969.7,1969.6,1.0]
[1617319544296,39.65788489,1969.7,1969.6,1.0]
[1617319544489,45.64148489,1969.7,1969.6,1.0]
[1617319544694,5.9836,1969.7,1969.6,1.0]
[1617319545092,5.9836,1969.7,1969.6,8.61642]
[1617319545290,5.9836,1969.7,1969.6,19.70642]
[1617319545533,27.7296,1969.8,1969.6,24.86642]
[1617319545735,23.51085048,1969.9,1969.8,21.85]
[1617319545933,23.51085048,1969.9,1969.8,26.05]
[1617319546134,23.51085048,1969.9,1969.8,31.35]
[1617319546935,23.259,1969.9,1969.8,31.35]
[1617319547733,23.259,1969.9,1969.8,38.96472]
[1617319548133,23.259,1969.9,1969.8,17.51472]
[1617319548331,23.259,1969.9,1969.8,20.62141554]
[1617319549136,23.259,1969.9,1969.8,30.27141554]
[1617319549336,23.259,1969.9,1969.8,46.74321554]
[1617319549540,32.50973537,1970.6,1969.8,38.74321554]
[1617319549742,0.25185048,1970.6,1970.5,6.54]
[1617319549938,0.25185048,1970.6,1970.5,14.0314]
[1617319550137,0.25185048,1970.6,1970.5,20.15514433]
[1617319550339,0.25185048,1970.6,1970.5,24.7639]
[1617319550963,0.25185048,1970.6,1970.5,25.9639]
[1617319551160,0.25185048,1970.6,1970.5,24.7639]
[1617319551559,32.25788489,1970.9,1970.5,25.9639]
[1617319551762,32.25788489,1970.9,1970.7,0.38]
[1617319551963,32.25788489,1970.9,1970.8,9.6418978]
[1617319552762,58.74088489,1971.3,1970.8,0.39]
[1617319552962,58.74088489,1971.3,1970.9,7.61071]
[1617319553162,58.74088489,1971.3,1970.9,17.14501]
[1617319553385,58.74088489,1971.3,1971.2,0.11665538]
[1617319558417,26.483,1971.3,1971.2,0.11665538]
[1617319558634,58.74088489,1971.3,1971.2,0.11665538]
[1617319562477,59.12088489,1971.3,1971.2,0.11665538]
[1617319563075,58.74088489,1971.3,1971.2,0.11665538]
[1617319564287,26.483,1971.3,1971.2,0.11665538]
[1617319571534,26.883,1971.3,1971.2,0.11665538]
[1617319571768,68.07328489,1971.3,1971.2,0.11665538]
[1617319573769,35.8154,1971.3,1971.2,5.38e-06]
[1617319573970,9.12,1971.2,1970.0,1.59]
[1617319574171,0.38,1970.7,1970.1,0.09132494]
[1617319574424,32.25788489,1970.6,1970.1,5.49599946]
[1617319574622,32.25788489,1970.6,1970.1,6.69599946]
[1617319575024,32.25788489,1970.6,1970.2,0.41]
[1617319575626,32.25788489,1970.6,1970.4,0.38]
[1617319575832,33.51458489,1970.8,1970.4,0.38]
[1617319576023,32.25788489,1970.8,1970.4,1.58]
[1617319576231,32.25788489,1970.8,1970.6,3.8059]
[1617319577435,32.25788489,1970.8,1970.7,0.17832008]
[1617319577832,32.25788489,1970.8,1970.7,11.05011008]
[1617319578633,0.39,1970.9,1970.7,11.05011008]